fUST/lending_fUST_20251003
["ID","MTS","AMOUNT","RATE_DAILY","PERIOD"]
[388916790,1759494644168,-562.457932,0.00022182,7]
[388916791,1759494644177,-562.457932,0.00022182,7]
[388916793,1759494644186,-151.0,0.00022182,7]
[388916795,1759494644196,-920.0,0.00022198,2]
[388916797,1759494644205,-877.279587,0.00022198,7]
[388916800,1759494644215,-877.279587,0.00022198,7]
[388916802,1759494644225,-179.34258744,0.00022198,7]
[388916804,1759494644237,-697.93699956,0.00022198,7]
[388916806,1759494644247,-877.279587,0.00022198,7]
[388916808,1759494644256,-267.584198,0.00022198,7]
[388916810,1759494644266,-267.584198,0.00022198,7]
[388916812,1759494644276,-267.584198,0.00022198,7]
[388916814,1759494644286,-267.584198,0.00022198,7]
[388916815,1759494644295,-293.47406221,0.00022198,7]
[388916818,1759494644304,-160.0,0.00022198,7]
[388916819,1759494644314,-157.840846,0.00022297,2]
[388916821,1759494644328,-240.2943149,0.00022339,2]
[388916824,1759494644339,-602.65993139,0.00022344,2]
[388916903,1759494646668,-1397.34006861,0.00022344,2]
[388916904,1759494646678,-500.0,0.0002237,3]
[388916905,1759494646688,-955.0,0.00022398,2]
[388916906,1759494646698,-226.05992939,0.00022498,2]
[388916907,1759494646836,-33.94007061,0.00022498,2]
[388916908,1759494646845,-482.93729601,0.00022544,2]
[388916949,1759495254100,503.0455,0.00028767,120]
[388916953,1759495353986,3533.0,0.00025,30]
[388917013,1759495831770,-210.61,0.000198,2]
[388917016,1759495831780,-500.0,0.000198,2]
[388917017,1759495831790,-535.0,0.0002,2]
[388917019,1759495831799,-570.0,0.000202,2]
[388917021,1759495831808,-1200.0,0.00020394,2]
[388917023,1759495831818,-300.0,0.00020394,2]
[388917025,1759495831827,-300.0,0.00020394,2]
[388917026,1759495831837,-300.0,0.00020394,2]
[388917027,1759495831846,-300.0,0.00020394,2]
[388917029,1759495831856,-1200.0,0.00020394,2]
[388917031,1759495831866,-13446.16354728,0.00020397,2]
[388917033,1759495831876,-500.0,0.00020397,2]
[388917035,1759495831886,-300.0,0.00020398,2]
[388917037,1759495831897,-300.0,0.00020398,2]
[388917039,1759495831907,-300.0,0.00020398,2]
[388917041,1759495831916,-300.0,0.00020398,2]
[388917043,1759495831926,-300.0,0.00020398,2]
[388917045,1759495831936,-300.0,0.00020398,2]
[388917047,1759495831945,-300.0,0.00020398,2]
[388917049,1759495831955,-300.0,0.00020398,2]
[388917050,1759495831964,-300.0,0.00020398,2]
[388917051,1759495831974,-300.0,0.00020398,2]
[388917052,1759495831983,-300.0,0.00020398,2]
[388917053,1759495831993,-300.0,0.00020398,2]
[388917054,1759495832002,-300.0,0.00020398,2]
[388917055,1759495832011,-300.0,0.00020398,2]
[388917056,1759495832021,-300.0,0.00020398,2]
[388917057,1759495832030,-600.0,0.00020398,2]
[388917058,1759495832039,-605.0,0.000204,2]
[388917059,1759495832049,-640.0,0.000206,2]
[388917061,1759495832058,-2157.0,0.00020776,2]
[388917063,1759495832067,-161.741,0.00020776,2]
[388917065,1759495832075,-290.0,0.000208,2]
[388917067,1759495832084,-1200.0,0.00021,2]
[388917069,1759495832095,-160.0,0.00021261,2]
[388917071,1759495832104,-160.0,0.00021261,2]
[388917073,1759495832113,-500.0,0.00021489,2]
[388917075,1759495832122,-253.0355449,0.00021742,2]
[388917077,1759495832133,-484.64356028,0.00021806,2]
[388917079,1759495832153,-500.0,0.000219,2]
[388917081,1759495832176,-500.0,0.00021906,2]
[388917083,1759495832186,-500.0,0.00021906,2]
[388917085,1759495832195,-500.0,0.0002191,2]
[388917087,1759495832204,-500.0,0.0002191,2]
[388917089,1759495832215,-500.0,0.0002191,2]
[388917091,1759495832224,-500.0,0.0002191,2]
[388917093,1759495832233,-500.0,0.0002191,2]
[388917095,1759495832242,-500.0,0.0002191,2]
[388917097,1759495832251,-500.0,0.0002191,2]
[388917099,1759495832259,-500.0,0.0002191,2]
[388917101,1759495832268,-500.0,0.0002191,2]
[388917103,1759495832277,-500.0,0.0002191,2]
[388917105,1759495832286,-500.0,0.0002191,2]
[388917107,1759495832295,-500.0,0.0002191,2]
[388917109,1759495832304,-185.54191902,0.0002191,2]
[388917111,1759495832314,-425.92624817,0.0002191,2]
[388917113,1759495832323,-500.0,0.0002191,2]
[388917115,1759495832333,-500.0,0.0002191,2]
[388917117,1759495832342,-233.37113933,0.0002191,2]
[388917119,1759495832351,-500.0,0.0002191,2]
[388917121,1759495832361,-500.0,0.0002191,2]
[388917123,1759495832371,-500.0,0.0002191,2]
[388917125,1759495832379,-500.0,0.0002191,2]
[388917127,1759495832388,-500.0,0.0002191,2]
[388917129,1759495832399,-361.24301378,0.0002191,2]
[388917131,1759495832408,-500.0,0.0002191,2]
[388917133,1759495832417,-615.41988665,0.0002191,2]
[388917135,1759495832427,-500.0,0.0002191,2]
[388917137,1759495832436,-581.67900543,0.0002191,2]
[388917139,1759495832446,-500.0,0.0002191,2]
[388917141,1759495832456,-500.0,0.0002191,2]
[388917143,1759495832464,-500.0,0.0002191,2]
[388917145,1759495832473,-500.0,0.0002191,2]
[388917147,1759495832482,-500.0,0.00021912,2]
[388917148,1759495832491,-500.0,0.00021944,2]
[388917150,1759495832500,-500.0,0.00021944,2]
[388917153,1759495832510,-500.0,0.00021944,2]
[388917154,1759495832519,-1300.0,0.00022,3]
[388917156,1759495832528,-1000.0,0.00022037,2]
[388917159,1759495832538,-1182.85967536,0.00022134,2]
[388917162,1759495832561,-1484.67,0.00022134,2]
[388917164,1759495832573,-450.61408924,0.00022134,2]
[388917166,1759495832582,-175.455917,0.00022134,7]
[388917168,1759495832591,-175.455917,0.00022134,7]
[388917170,1759495832601,-175.455917,0.00022134,7]
[388917172,1759495832611,-175.455917,0.00022134,7]
[388917174,1759495832620,-151.0,0.00022156,7]
[388917176,1759495832629,-151.0,0.00022156,7]
[388917178,1759495832639,-151.0,0.00022156,7]
[388917180,1759495832649,-151.0,0.00022156,7]
[388917182,1759495832658,-151.0,0.00022156,7]
[388917184,1759495832667,-420.0,0.00022198,2]
[388917186,1759495832676,-1680.0,0.00022304,2]
[388917188,1759495832686,-500.0,0.00022305,2]
[388917190,1759495832696,-641.0,0.0002237,3]
[388917192,1759495832705,-720.0,0.00022438,20]
[388917194,1759495832715,-1000.0,0.00022448,2]
[388917196,1759495832724,-1000.0,0.00022454,2]
[388917198,1759495832733,-1000.0,0.00022454,2]
[388917200,1759495832744,-337.474759,0.00022454,7]
[388917201,1759495832754,-337.474759,0.00022454,7]
[388917203,1759495832763,-337.474759,0.00022454,7]
[388917204,1759495832772,-337.474759,0.00022454,7]
[388917205,1759495832782,-1000.0,0.00022492,2]
[388917206,1759495832791,-1000.0,0.00022492,2]
[388917207,1759495832801,-714.8642941,0.00022492,2]
[388917208,1759495832811,-260.51491804,0.00022561,2]
[388917209,1759495832821,-166.0,0.00022562,2]
[388917210,1759495832831,-1746.4085902,0.00022562,2]
[388917212,1759495837802,-333.90136465,0.00020776,2]
[388917227,1759495839680,-76.09863535,0.00020776,2]
[388917228,1759495839689,-1936.52793597,0.00022552,10]
[388917229,1759495839701,-1962.52206403,0.00022552,10]
[388917230,1759495839710,-102139.89503597,0.00022562,2]
[388917247,1759495843625,-2922.0,0.00022562,2]
[388917261,1759495845778,-353.94910211,0.00021909,2]
[388917262,1759495845788,-568.37998741,0.00021909,2]
[388917263,1759495845798,-231.29766727,0.00021909,2]
[388917264,1759495845808,-206.80477931,0.00021909,2]
[388917265,1759495845817,-3249.21,0.00022552,10]
[388917266,1759495845826,-939.5084639,0.00022562,2]
[388917269,1759495912258,2487.3851512,0.0001,2]
[388917270,1759495912281,10000.01,0.0001,2]
[388917271,1759495912305,10000.01,0.0001,2]
[388917272,1759495912328,10000.01,0.0001,2]
[388917273,1759495912351,10000.01,0.0001,2]
[388917274,1759495912375,2512.5748478,0.0001,2]
[388917281,1759495985498,300.0,0.000137,2]
[388917282,1759495998413,300.0,0.000137,2]
[388917283,1759496008936,300.0,0.000137,2]
[388917284,1759496020402,300.0,0.000137,2]
[388917285,1759496030808,300.0,0.000137,2]
[388917293,1759496684729,223.5439875,0.00028,120]
[388917294,1759496716947,206.0,0.00026,120]
[388917303,1759497032095,-5000.0,0.0001842,2]
[388917304,1759497032104,-1050.0,0.00018606,2]
[388917305,1759497032114,-500.0,0.00018607,2]
[388917306,1759497032123,-535.0,0.00018807,2]
[388917307,1759497032132,-210.454462,0.00018895,2]
[388917308,1759497032141,-570.0,0.00019007,2]
[388917309,1759497032150,-535.3187813,0.00019088,2]
[388917310,1759497032161,-545.40302814,0.00019088,2]
[388917311,1759497032172,-119.27819056,0.00019088,2]
[388917312,1759497032182,-300.0,0.00019089,2]
[388917313,1759497032191,-430.34043866,0.0001909,2]
[388917480,1759497037743,-569.65956134,0.0001909,2]
[388917481,1759497037753,-605.0,0.00019207,2]
[388917482,1759497037763,-364.51421115,0.00019406,2]
[388917483,1759497037774,-135.48578885,0.00019406,2]
[388917484,1759497037783,-622.4805993,0.00019406,2]
[388917485,1759497037793,-500.0,0.00019406,2]
[388917486,1759497037802,-228.09240736,0.00019406,2]
[388917487,1759497037811,-393.27678013,0.00019406,2]
[388917488,1759497037823,-430.14041545,0.00019406,2]
[388917489,1759497037834,-104.40564785,0.00019406,2]
[388917490,1759497037844,-436.79392611,0.00019407,2]
[388917491,1759497037855,-203.20607389,0.00019407,2]
[388917492,1759497037864,-4494.83521008,0.00019407,2]
[388917493,1759497037875,-8318.16748179,0.00019407,2]
[388917494,1759497037886,-1764.744,0.00019407,2]
[388917505,1759497039818,-8755.87452877,0.00019407,2]
[388917506,1759497039828,-151.16237677,0.00019584,2]
[388917508,1759497039839,-675.0,0.00019607,2]
[388917509,1759497039849,-500.0,0.00019998,2]
[388917510,1759497039859,-500.0,0.00019999,2]
[388917511,1759497039869,-414.7634282,0.00019999,2]
[388917512,1759497039879,-500.0,0.00019999,2]
[388917513,1759497039888,-500.0,0.00019999,2]
[388917514,1759497039898,-500.02,0.00019999,2]
[388917515,1759497039907,-500.02,0.00019999,2]
[388917516,1759497039917,-303.69772023,0.00019999,2]
[388917517,1759497039926,-500.0,0.00019999,2]
[388917518,1759497039937,-500.0,0.00019999,2]
[388917519,1759497039946,-500.0,0.00019999,2]
[388917520,1759497039956,-500.0,0.00019999,2]
[388917521,1759497039965,-11074.0,0.0002,2]
[388917522,1759497039975,-203.84317035,0.0002,2]
[388917523,1759497039985,-1030.48,0.00020397,2]
[388917524,1759497039997,-500.0,0.00020397,2]
[388917525,1759497040007,-500.0,0.00020398,2]
[388917526,1759497040017,-300.0,0.00020399,2]
[388917527,1759497040026,-300.0,0.00020399,2]
[388917528,1759497040036,-300.0,0.00020399,2]
[388917529,1759497040046,-300.0,0.00020399,2]
[388917530,1759497040056,-300.0,0.00020399,2]
[388917531,1759497040069,-300.0,0.00020399,2]
[388917532,1759497040078,-300.0,0.00020399,2]
[388917533,1759497040087,-300.0,0.00020399,2]
[388917534,1759497040097,-300.0,0.00020399,2]
[388917535,1759497040106,-300.0,0.00020399,2]
[388917536,1759497040115,-300.0,0.00020399,2]
[388917537,1759497040124,-300.0,0.00020399,2]
[388917538,1759497040134,-300.0,0.00020399,2]
[388917539,1759497040143,-300.0,0.00020399,2]
[388917540,1759497040158,-300.0,0.00020399,2]
[388917541,1759497040168,-150.0,0.00020778,2]
[388917542,1759497040184,-980.0,0.00020778,2]
[388917543,1759497040194,-630.0,0.00020778,2]
[388917544,1759497040203,-2157.0,0.00020778,2]
[388917545,1759497040212,-428.711,0.00020778,2]
[388917546,1759497040221,-193.70035369,0.00020804,2]
[388917547,1759497040231,-259.30265766,0.00020804,2]
[388917548,1759497040239,-420.0,0.00020805,2]
[388917549,1759497040249,-600.0,0.00020806,2]
[388917550,1759497040259,-1680.0,0.00020905,2]
[388917551,1759497040268,-5847.0,0.00021021,2]
[388917552,1759497040277,-1013.76750494,0.00021815,2]
[388917553,1759497040286,-160.0,0.00021822,3]
[388917554,1759497040295,-500.0,0.0002188,2]
[388917555,1759497040305,-500.02,0.0002188,2]
[388917556,1759497040314,-500.0,0.0002188,2]
[388917557,1759497040323,-151.0,0.0002188,2]
[388917558,1759497040333,-151.0,0.0002188,2]
[388917559,1759497040342,-500.0,0.0002188,2]
[388917560,1759497040351,-151.0,0.0002188,2]
[388917561,1759497040360,-153.451652,0.0002188,2]
[388917562,1759497040369,-151.0,0.0002188,2]
[388917563,1759497040380,-155.389374,0.0002188,2]
[388917564,1759497040391,-151.0,0.0002188,2]
[388917565,1759497040400,-151.0,0.0002188,2]
[388917566,1759497040410,-151.0,0.0002188,2]
[388917567,1759497040419,-1489.387064,0.0002188,2]
[388917568,1759497040429,-1489.387064,0.0002188,2]
[388917569,1759497040438,-1489.387064,0.0002188,2]
[388917570,1759497040447,-1489.387064,0.0002188,2]
[388917571,1759497040456,-151.0,0.0002188,2]
[388917572,1759497040465,-151.0,0.0002188,2]
[388917573,1759497040475,-155.817894,0.0002188,2]
[388917574,1759497040484,-155.817894,0.0002188,2]
[388917575,1759497040493,-155.817894,0.0002188,2]
[388917576,1759497040502,-155.817894,0.0002188,2]
[388917577,1759497040511,-151.0,0.0002188,2]
[388917578,1759497040521,-151.0,0.0002188,2]
[388917579,1759497040530,-208.861362,0.0002188,2]
[388917580,1759497040539,-398.947426,0.0002188,2]
[388917581,1759497040549,-398.947426,0.0002188,2]
[388917582,1759497040558,-398.947426,0.0002188,2]
[388917583,1759497040567,-398.947426,0.0002188,2]
[388917584,1759497040576,-151.0,0.0002188,2]
[388917585,1759497040586,-151.0,0.0002188,2]
[388917586,1759497040595,-151.0,0.0002188,2]
[388917587,1759497040605,-151.0,0.0002188,2]
[388917588,1759497040614,-151.0,0.0002188,2]
[388917589,1759497040623,-312.269272,0.0002188,2]
[388917590,1759497040632,-312.269272,0.0002188,2]
[388917591,1759497040642,-312.269272,0.0002188,2]
[388917592,1759497040651,-312.269272,0.0002188,2]
[388917593,1759497040661,-2018.22,0.00021902,10]
[388917594,1759497040670,-2371.31,0.00021905,10]
[388917595,1759497040680,-500.0,0.0002191,2]
[388917596,1759497040690,-500.0,0.00021911,2]
[388917597,1759497040699,-1030.48,0.00021912,2]
[388917598,1759497040708,-151.0,0.00021912,2]
[388917599,1759497040718,-152.636614,0.00021912,2]
[388917600,1759497040727,-151.0,0.00021912,2]
[388917601,1759497040736,-151.0,0.00021912,2]
[388917602,1759497040748,-151.0,0.00021912,2]
[388917603,1759497040757,-151.0,0.00021912,2]
[388917604,1759497040767,-151.0,0.00021912,2]
[388917605,1759497040776,-151.0,0.00021912,2]
[388917606,1759497040786,-151.0,0.00021912,2]
[388917607,1759497040795,-151.0,0.00021912,2]
[388917608,1759497040804,-151.0,0.00021912,2]
[388917609,1759497040814,-500.0,0.00021914,2]
[388917610,1759497040823,-500.0,0.00021915,2]
[388917611,1759497040835,-520.0,0.00021915,3]
[388917612,1759497040845,-520.0,0.00021915,3]
[388917613,1759497040854,-520.0,0.00021915,3]
[388917614,1759497040864,-628.45588158,0.00021915,3]
[388917615,1759497040873,-151.0,0.00021915,2]
[388917616,1759497040882,-152.227412,0.00021915,2]
[388917617,1759497040892,-158.622185,0.00021915,2]
[388917618,1759497040902,-151.0,0.00021915,2]
[388917619,1759497040911,-151.0,0.00021915,2]
[388917620,1759497040920,-151.0,0.00021915,2]
[388917621,1759497040930,-151.0,0.00021915,2]
[388917622,1759497040940,-151.0,0.00021915,2]
[388917623,1759497040949,-187.584828,0.00021915,2]
[388917624,1759497040959,-151.0,0.00021915,2]
[388917625,1759497040968,-151.0,0.00021915,2]
[388917626,1759497040978,-151.0,0.00021915,2]
[388917627,1759497040987,-173.335671,0.00021915,2]
[388917628,1759497040996,-173.335671,0.00021915,2]
[388917629,1759497041006,-173.335671,0.00021915,2]
[388917630,1759497041016,-173.335671,0.00021915,2]
[388917631,1759497041026,-151.0,0.00021915,2]
[388917632,1759497041035,-779.22,0.00021915,2]
[388917633,1759497041044,-151.0,0.00021915,2]
[388917634,1759497041054,-151.0,0.00021915,2]
[388917635,1759497041064,-178.459737,0.00021915,2]
[388917636,1759497041073,-151.0,0.00021915,2]
[388917637,1759497041083,-758.853259,0.00021915,2]
[388917638,1759497041091,-758.853259,0.00021915,2]
[388917639,1759497041100,-758.853259,0.00021915,2]
[388917640,1759497041110,-758.853259,0.00021915,2]
[388917641,1759497041119,-151.0,0.00021915,2]
[388917642,1759497041128,-152.470677,0.00021915,2]
[388917643,1759497041138,-151.0,0.00021915,2]
[388917644,1759497041148,-151.0,0.00021915,2]
[388917645,1759497041157,-151.0,0.00021915,2]
[388917646,1759497041167,-151.0,0.00021915,2]
[388917647,1759497041176,-151.0,0.00021915,2]
[388917648,1759497041185,-151.0,0.00021915,2]
[388917649,1759497041195,-1489.387064,0.00021915,2]
[388917650,1759497041204,-1489.387064,0.00021915,2]
[388917651,1759497041213,-1489.387064,0.00021915,2]
[388917652,1759497041222,-1489.387064,0.00021915,2]
[388917653,1759497041232,-244.22180316,0.00021915,2]
[388917654,1759497041241,-155.817894,0.00021915,2]
[388917655,1759497041250,-155.817894,0.00021915,2]
[388917656,1759497041260,-155.817894,0.00021915,2]
[388917657,1759497041269,-155.817894,0.00021915,2]
[388917658,1759497041279,-151.0,0.00021915,2]
[388917659,1759497041288,-398.947426,0.00021915,2]
[388917660,1759497041297,-398.947426,0.00021915,2]
[388917661,1759497041306,-398.947426,0.00021915,2]
[388917662,1759497041316,-398.947426,0.00021915,2]
[388917663,1759497041325,-151.0,0.00021915,2]
[388917664,1759497041538,-151.0,0.00021915,2]
[388917665,1759497041548,-161.82,0.00021915,2]
[388917666,1759497041557,-151.0,0.00021915,2]
[388917667,1759497041566,-151.0,0.00021915,2]
[388917668,1759497041576,-312.269272,0.00021915,2]
[388917669,1759497041585,-312.269272,0.00021915,2]
[388917670,1759497041594,-312.269272,0.00021915,2]
[388917671,1759497041603,-312.269272,0.00021915,2]
[388917672,1759497041612,-1478.0242242,0.00021918,7]
[388917673,1759497041620,-151.0,0.00021918,2]
[388917674,1759497041630,-151.0,0.00021918,2]
[388917675,1759497041640,-269.979807,0.00021918,2]
[388917676,1759497041650,-269.979807,0.00021918,2]
[388917677,1759497041659,-269.979807,0.00021918,2]
[388917678,1759497041668,-269.979807,0.00021918,2]
[388917679,1759497041677,-269.979807,0.00021918,2]
[388917680,1759497041688,-269.979807,0.00021918,2]
[388917681,1759497041697,-269.979807,0.00021918,2]
[388917682,1759497041706,-269.979807,0.00021918,2]
[388917683,1759497041715,-151.0,0.00021918,7]
[388917684,1759497041725,-151.0,0.00021918,7]
[388917685,1759497041734,-151.0,0.00021918,7]
[388917686,1759497041743,-151.0,0.00021918,7]
[388917687,1759497041757,-151.0,0.00021918,7]
[388917688,1759497041766,-266.504745,0.00021918,7]
[388917689,1759497041775,-151.0,0.00021918,7]
[388917690,1759497041785,-151.0,0.00021918,7]
[388917691,1759497041795,-151.0,0.00021918,7]
[388917692,1759497041804,-153.952921,0.0002194,7]
[388917693,1759497041814,-500.0,0.00021949,2]
[388917694,1759497041824,-1309.5370003,0.0002195,2]
[388917695,1759497041834,-151.0,0.0002195,7]
[388917696,1759497041843,-151.0,0.0002195,7]
[388917697,1759497041852,-161.91754,0.0002195,7]
[388917698,1759497041862,-151.0,0.0002195,7]
[388917699,1759497041872,-154.874299,0.0002195,7]
[388917700,1759497041881,-151.0,0.0002195,7]
[388917701,1759497041892,-151.0,0.0002195,7]
[388917702,1759497041901,-758.853259,0.0002195,7]
[388917703,1759497041911,-758.853259,0.0002195,7]
[388917704,1759497041920,-758.853259,0.0002195,7]
[388917705,1759497041929,-758.853259,0.0002195,7]
[388917706,1759497041937,-151.0,0.0002195,7]
[388917707,1759497041947,-151.0,0.0002195,7]
[388917708,1759497041956,-151.0,0.0002195,7]
[388917709,1759497041965,-158.357778,0.0002195,7]
[388917710,1759497041974,-1489.387064,0.0002195,7]
[388917711,1759497041984,-1489.387064,0.0002195,7]
[388917712,1759497041994,-1489.387064,0.0002195,7]
[388917713,1759497042003,-1489.387064,0.0002195,7]
[388917714,1759497042013,-155.817894,0.0002195,7]
[388917715,1759497042022,-155.817894,0.0002195,7]
[388917716,1759497042032,-155.817894,0.0002195,7]
[388917717,1759497042041,-155.817894,0.0002195,7]
[388917718,1759497042051,-151.0,0.0002195,7]
[388917719,1759497042061,-398.947426,0.0002195,7]
[388917720,1759497042071,-398.947426,0.0002195,7]
[388917721,1759497042082,-398.947426,0.0002195,7]
[388917722,1759497042091,-398.947426,0.0002195,7]
[388917723,1759497042101,-151.0,0.0002195,7]
[388917724,1759497042110,-151.0,0.0002195,7]
[388917725,1759497042120,-151.0,0.0002195,7]
[388917726,1759497042129,-151.0,0.0002195,7]
[388917727,1759497042138,-312.269272,0.0002195,7]
[388917728,1759497042147,-312.269272,0.0002195,7]
[388917729,1759497042156,-312.269272,0.0002195,7]
[388917730,1759497042166,-312.269272,0.0002195,7]
[388917731,1759497042175,-500.0,0.00021968,2]
[388917732,1759497042185,-500.0,0.00021968,2]
[388917733,1759497042195,-500.0,0.00021968,2]
[388917734,1759497042204,-261.22284112,0.00021968,2]
[388917735,1759497042213,-500.0,0.00021968,2]
[388917736,1759497042223,-500.0,0.00021968,2]
[388917737,1759497042232,-500.0,0.00021968,2]
[388917738,1759497042242,-500.0,0.00021968,2]
[388917739,1759497042251,-500.0,0.00021968,2]
[388917740,1759497042260,-500.0,0.00021968,2]
[388917741,1759497042270,-502.18387094,0.00021968,2]
[388917742,1759497042280,-500.0,0.00021968,2]
[388917743,1759497042289,-484.14111895,0.00021968,2]
[388917744,1759497042298,-500.0,0.00021968,2]
[388917745,1759497042308,-374.25063697,0.00021968,2]
[388917746,1759497042317,-150.0,0.00021968,2]
[388917748,1759497042326,-500.61203194,0.00021968,2]
[388917750,1759497042335,-500.0,0.00021968,2]
[388917751,1759497042344,-502.64413986,0.00021968,2]
[388917752,1759497042354,-500.0,0.00021968,2]
[388917753,1759497042363,-45.8758566,0.00022033,7]
[388917771,1759497045938,-500.0,0.00020778,2]
[388917772,1759497045948,-500.0,0.00021052,2]
[388917773,1759497045958,-500.0,0.00021325,2]
[388917774,1759497045968,-500.0,0.00021599,2]
[388917775,1759497045977,-115.4610544,0.00022033,7]
[388917776,1759497045987,-151.0,0.00022033,7]
[388917777,1759497045996,-151.0,0.00022033,7]
[388917778,1759497046006,-151.0,0.00022033,7]
[388917779,1759497046015,-151.0,0.00022033,7]
[388917780,1759497046025,-269.979807,0.00022033,7]
[388917781,1759497046034,-269.979807,0.00022033,7]
[388917782,1759497046044,-269.979807,0.00022033,7]
[388917783,1759497046053,-151.0,0.00022033,7]
[388917784,1759497046063,-269.979807,0.00022033,7]
[388917785,1759497046072,-151.0,0.00022033,7]
[388917786,1759497046081,-151.0,0.00022033,7]
[388917787,1759497046092,-300.0,0.00022105,2]
[388917788,1759497046101,-151.0,0.00022123,7]
[388917789,1759497046110,-151.0,0.00022123,7]
[388917790,1759497046119,-151.0,0.00022123,7]
[388917791,1759497046128,-151.0,0.00022123,7]
[388917792,1759497046138,-151.0,0.00022123,7]
[388917793,1759497046147,-500.0,0.00022132,2]
[388917794,1759497046156,-500.53408129,0.00022132,2]
[388917795,1759497046166,-293.47406221,0.00022133,7]
[388917796,1759497046175,-151.0,0.00022133,7]
[388917798,1759497046184,-151.0,0.00022133,7]
[388917799,1759497046194,-160.0,0.00022133,7]
[388917800,1759497046203,-151.0,0.00022133,7]
[388917801,1759497046213,-151.0,0.00022133,7]
[388917802,1759497046222,-151.0,0.00022133,7]
[388917803,1759497046231,-173.335671,0.00022133,7]
[388917804,1759497046241,-173.335671,0.00022133,7]
[388917805,1759497046250,-173.335671,0.00022133,7]
[388917806,1759497046260,-173.335671,0.00022133,7]
[388917809,1759497046448,-173.335671,0.00022133,7]
[388917810,1759497046458,-173.335671,0.00022133,7]
[388917811,1759497046467,-173.335671,0.00022133,7]
[388917812,1759497046476,-173.335671,0.00022133,7]
[388917813,1759497046485,-151.0,0.00022133,7]
[388917814,1759497046494,-151.0,0.00022133,7]
[388917815,1759497046503,-151.0,0.00022133,7]
[388917816,1759497046513,-758.853259,0.00022133,7]
[388917817,1759497046522,-758.853259,0.00022133,7]
[388917818,1759497046531,-758.853259,0.00022133,7]
[388917819,1759497046541,-758.853259,0.00022133,7]
[388917820,1759497046550,-151.0,0.00022133,7]
[388917821,1759497046560,-151.0,0.00022133,7]
[388917822,1759497046569,-208.167628,0.00022133,7]
[388917824,1759497046579,-151.0,0.00022133,7]
[388917825,1759497046588,-197.838596,0.00022133,7]
[388917826,1759497046597,-151.0,0.00022133,7]
[388917827,1759497046607,-151.0,0.00022133,7]
[388917828,1759497046616,-151.0,0.00022133,7]
[388917829,1759497046625,-151.0,0.00022133,7]
[388917830,1759497046635,-151.0,0.00022133,7]
[388917831,1759497046643,-269.979807,0.00022133,7]
[388917832,1759497046653,-269.979807,0.00022133,7]
[388917833,1759497046662,-269.979807,0.00022133,7]
[388917834,1759497046671,-269.979807,0.00022133,7]
[388917835,1759497046681,-269.979807,0.00022133,7]
[388917836,1759497046691,-269.979807,0.00022133,7]
[388917837,1759497046700,-211.571349,0.00022133,7]
[388917838,1759497046709,-269.979807,0.00022133,7]
[388917840,1759497046718,-269.979813,0.00022133,7]
[388917841,1759497046727,-151.0,0.00022133,7]
[388917843,1759497046737,-151.0,0.00022133,7]
[388917844,1759497046748,-151.0,0.00022133,7]